bitfinex/quotes_BTCUSD_20251207
["timestamp","ask_amount","ask_price","bid_price","bid_amount"]
[1765129264379,0.22375763,90811.0,90810.0,0.00182478]
[1765129264576,0.29094763,90811.0,90810.0,0.00182478]
[1765129265508,0.24241763,90811.0,90810.0,0.00182478]
[1765129266327,0.29094763,90811.0,90810.0,0.00182478]
[1765129266529,0.22375763,90811.0,90810.0,0.00182478]
[1765129266714,0.24143763,90811.0,90810.0,0.00182478]
[1765129266914,0.24143763,90811.0,90810.0,0.06271478]
[1765129267115,0.24143763,90811.0,90810.0,0.00182478]
[1765129267901,0.23943763,90811.0,90810.0,0.00182478]
[1765129268103,0.23943763,90811.0,90810.0,0.00382478]
[1765129268514,0.23843763,90811.0,90810.0,0.00382478]
[1765129268670,0.23943763,90811.0,90810.0,0.00382478]
[1765129269094,0.23843763,90811.0,90810.0,0.00382478]
[1765129270685,0.23892763,90811.0,90810.0,0.00382478]
[1765129270869,0.23843763,90811.0,90810.0,0.00382478]
[1765129271337,0.23843763,90811.0,90810.0,0.00182478]
[1765129271823,0.23892763,90811.0,90810.0,0.00382478]
[1765129271999,0.23892763,90811.0,90810.0,0.00182478]
[1765129272165,0.24092763,90811.0,90810.0,0.00182478]
[1765129272367,0.24192763,90811.0,90810.0,0.00182478]
[1765129273404,0.24092763,90811.0,90810.0,0.00182478]
[1765129273625,0.23892763,90811.0,90810.0,0.00182478]
[1765129274018,0.22424763,90811.0,90810.0,0.00182478]
[1765129274221,0.24192763,90811.0,90810.0,0.00182478]
[1765129274420,0.29093763,90811.0,90810.0,0.00182478]
[1765129274826,0.29093763,90811.0,90810.0,0.06227478]
[1765129274827,0.22575763,90811.0,90810.0,0.06227478]
[1765129275039,0.24343763,90811.0,90810.0,0.00182478]
[1765129275780,0.24143763,90811.0,90810.0,0.00182478]
[1765129276316,0.29093763,90811.0,90810.0,0.00182478]
[1765129276713,0.28793763,90811.0,90810.0,0.00182478]
[1765129276963,0.23843763,90811.0,90810.0,0.00182478]
[1765129277141,0.23943763,90811.0,90810.0,0.00182478]
[1765129277343,0.24043763,90811.0,90810.0,0.00182478]
[1765129277558,0.29042763,90811.0,90810.0,0.00182478]
[1765129277744,0.28993763,90811.0,90810.0,0.00182478]
[1765129277918,0.28944763,90811.0,90810.0,0.00182478]
[1765129278309,0.28844763,90811.0,90810.0,0.00182478]
[1765129278516,0.23943763,90811.0,90810.0,0.00182478]
[1765129278762,0.24043763,90811.0,90810.0,0.00182478]
[1765129279163,0.23943763,90811.0,90810.0,0.00182478]
[1765129279545,0.24043763,90811.0,90810.0,0.00182478]
[1765129279907,0.29042763,90811.0,90810.0,0.00182478]
[1765129280835,0.28942763,90811.0,90810.0,0.00182478]
[1765129281249,0.29042763,90811.0,90810.0,0.00182478]
[1765129281448,0.35195062,90811.0,90810.0,0.00182478]
[1765129281601,0.35095062,90811.0,90810.0,0.00182478]
[1765129281798,0.35195062,90811.0,90810.0,0.00182478]
[1765129282002,0.35295062,90811.0,90810.0,0.00182478]
[1765129282407,0.35195062,90811.0,90810.0,0.00182478]
[1765129282738,0.67495062,90811.0,90810.0,0.00182478]
[1765129282929,0.67595062,90811.0,90810.0,0.00182478]
[1765129283106,0.28278488,90801.0,90800.0,0.5004]
[1765129283308,0.34910488,90801.0,90800.0,0.50051751]
[1765129283505,0.34963488,90801.0,90800.0,0.50051751]
[1765129283971,0.22030799,90782.0,90781.0,9e-05]
[1765129284297,0.30483799,90782.0,90781.0,0.00020775]
[1765129284574,0.38816418,90782.0,90781.0,0.00020775]
[1765129284784,0.23798799,90782.0,90781.0,0.20118775]
[1765129284958,0.23798799,90782.0,90781.0,0.04594775]
[1765129285167,0.01768,90782.0,90781.0,0.00220775]
[1765129285386,0.01817,90782.0,90781.0,0.00220775]
[1765129285561,0.06718,90782.0,90781.0,0.00020775]
[1765129286157,0.06818,90782.0,90781.0,0.00020775]
[1765129286776,0.06979287,90782.0,90781.0,0.00020775]
[1765129286983,0.07279287,90782.0,90781.0,0.00020775]
[1765129287190,0.06979287,90782.0,90781.0,0.00020775]
[1765129287399,0.2078882,90782.0,90781.0,0.00020775]
[1765129287606,0.15551984,90782.0,90781.0,0.00020775]
[1765129288016,0.15351984,90782.0,90781.0,0.00020775]
[1765129288145,0.15451984,90782.0,90781.0,0.00020775]
[1765129288769,0.15351984,90782.0,90781.0,0.00020775]
[1765129288988,0.22035896,90761.0,90760.0,0.0004]
[1765129289196,0.30278277,90761.0,90760.0,0.0004]
[1765129289403,0.35179277,90761.0,90760.0,0.0004]
[1765129289822,0.28510277,90761.0,90760.0,0.0004]
[1765129290038,0.23976978,90761.0,90760.0,0.0004]
[1765129290238,0.28927978,90761.0,90760.0,0.0004]
[1765129290641,0.29027978,90761.0,90760.0,0.0004]
[1765129290998,0.24174978,90761.0,90760.0,0.0004]
[1765129291230,0.24076978,90761.0,90760.0,0.0004]
[1765129291471,0.23976978,90761.0,90760.0,0.0004]
[1765129291677,0.22308978,90761.0,90760.0,0.0004]
[1765129292091,0.23976978,90761.0,90760.0,0.02260398]
[1765129292678,0.22047691,90761.0,90760.0,0.08305398]
[1765129292877,0.00111795,90761.0,90760.0,0.06085]
[1765129293088,0.01879795,90761.0,90760.0,0.15564]
[1765129293293,0.01879795,90761.0,90760.0,0.17784398]
[1765129293547,0.01879795,90761.0,90760.0,0.17984398]
[1765129293932,0.01879795,90761.0,90760.0,0.17784398]
[1765129294130,0.01779795,90761.0,90760.0,0.18684398]
[1765129294591,0.01779795,90761.0,90760.0,0.18932366]
[1765129294867,0.01779795,90761.0,90760.0,0.18832366]
[1765129295108,0.01779795,90761.0,90760.0,0.09353366]
[1765129295317,0.01779795,90761.0,90760.0,0.03408366]
[1765129295486,0.01779795,90761.0,90760.0,0.01187968]
[1765129295487,0.01828795,90761.0,90760.0,0.01187968]
[1765129295824,0.06729795,90761.0,90760.0,0.01087968]
[1765129296250,0.06729795,90761.0,90760.0,0.01187968]
[1765129296251,0.13143381,90761.0,90760.0,0.01187968]
[1765129296684,0.13143381,90761.0,90750.0,0.0004]
[1765129296685,0.2829038,90752.0,90750.0,0.0004]
[1765129296884,0.00049,90751.0,90750.0,0.0004]
[1765129296990,0.06462586,90751.0,90750.0,0.0004]
[1765129297191,0.11363586,90751.0,90750.0,0.0004]
[1765129297406,0.00210287,90751.0,90750.0,0.0004]
[1765129297608,0.01929287,90751.0,90750.0,0.0004]
[1765129297835,0.01929287,90751.0,90750.0,0.0024]
[1765129298242,0.01929287,90751.0,90750.0,0.0004]
[1765129298459,0.01929287,90751.0,90750.0,0.0024]
[1765129298950,0.02029287,90751.0,90750.0,0.0024]
[1765129299901,0.02127287,90751.0,90750.0,0.0024]
[1765129300044,0.00359287,90751.0,90750.0,0.0024]
[1765129300262,0.06980287,90751.0,90750.0,0.0024]
[1765129300724,0.00359287,90751.0,90750.0,0.0024]
[1765129300938,0.02127287,90751.0,90750.0,0.0024]
[1765129301309,0.0360863,90751.0,90750.0,0.0024]
[1765129301897,0.02029287,90751.0,90750.0,0.0024]
[1765129302102,0.001,90751.0,90750.0,0.08767398]
[1765129302248,0.01868,90751.0,90750.0,0.1566]
[1765129302482,0.001,90751.0,90750.0,0.06547]
[1765129302656,0.01868,90751.0,90750.0,0.17880398]
[1765129302851,0.001,90751.0,90750.0,0.4746]
[1765129303053,0.01868,90751.0,90750.0,0.49680398]
[1765129304182,0.01768,90751.0,90750.0,0.50280398]
[1765129305400,0.01768,90751.0,90750.0,0.4806]
[1765129305643,0.01768,90751.0,90750.0,0.17980398]
[1765129307708,0.01768,90751.0,90750.0,0.18010003]
[1765129308145,0.0110177,90763.0,90760.0,0.02220398]
[1765129308349,0.01779795,90761.0,90760.0,0.08527398]
[1765129308559,0.22028129,90793.0,90774.0,0.01101637]
[1765129308761,0.22028129,90793.0,90776.0,0.02220398]
[1765129308762,0.011016,90777.0,90776.0,0.02220398]
[1765129309186,0.01101491,90786.0,90782.0,0.01101539]
[1765129309385,0.02869503,90785.0,90784.0,0.02220398]
[1765129309539,0.01768,90785.0,90784.0,0.02220398]
[1765129309811,0.01101491,90786.0,90785.0,0.06962398]
[1765129309959,0.01101491,90786.0,90785.0,0.13269398]
[1765129309960,0.02869491,90786.0,90785.0,0.13269398]
[1765129310385,0.02869491,90786.0,90785.0,0.04742]
[1765129310716,0.01101491,90786.0,90785.0,0.04742]
[1765129310843,0.02869491,90786.0,90785.0,0.04742]
[1765129311041,0.02869491,90786.0,90785.0,0.02520398]
[1765129311247,0.02869491,90786.0,90785.0,0.02620398]
[1765129311893,0.04561121,90786.0,90785.0,0.004]
[1765129312103,0.09462121,90786.0,90785.0,0.004]
[1765129312523,0.09462121,90786.0,90785.0,0.003]
[1765129312524,0.04512121,90786.0,90785.0,0.003]
[1765129312949,0.23135028,90772.0,90762.0,0.01101782]
[1765129313152,0.23135028,90772.0,90768.0,0.02220398]
[1765129313153,0.22033954,90769.0,90768.0,0.02220398]
[1765129313361,0.0110177,90763.0,90760.0,0.02852952]
[1765129313563,0.22036382,90759.0,90758.0,0.02220398]
[1765129313763,0.23804382,90759.0,90758.0,0.02220398]
[1765129314546,0.23804382,90759.0,90758.0,0.02259646]
[1765129314739,0.23804382,90759.0,90758.0,0.02359646]
[1765129315322,0.01101709,90768.0,90762.0,0.01101782]
[1765129315518,0.01101673,90771.0,90770.0,0.02220398]
[1765129315720,0.01101637,90774.0,90773.0,0.02220398]
[1765129315921,0.02869637,90774.0,90773.0,0.08560398]
[1765129316209,0.22032983,90773.0,90771.0,0.04809]
[1765129316411,0.02869637,90774.0,90771.0,0.04809]
[1765129316412,0.01768,90774.0,90771.0,0.04809]
[1765129316544,0.01101624,90775.0,90774.0,0.02220398]
[1765129316749,0.011016,90777.0,90776.0,0.02220398]
[1765129316945,0.028696,90777.0,90776.0,0.08560398]
[1765129317151,0.011016,90777.0,90776.0,0.17974398]
[1765129317369,0.028696,90777.0,90776.0,0.17974398]
[1765129317575,0.011016,90777.0,90776.0,0.17974398]
[1765129317786,0.028696,90777.0,90776.0,0.17974398]
[1765129317988,0.028696,90777.0,90776.0,0.08560398]
[1765129318201,0.031696,90777.0,90776.0,0.08560398]
[1765129318634,0.02068,90777.0,90776.0,0.17974398]
[1765129319076,0.02068,90777.0,90776.0,0.15754]
[1765129319298,0.02068,90777.0,90776.0,0.17974398]
[1765129319527,0.003,90777.0,90776.0,0.17974398]
[1765129319736,0.02068,90777.0,90776.0,0.17974398]
[1765129319973,0.23134605,90774.0,90771.0,0.04809]
[1765129320198,0.01101673,90771.0,90768.0,0.323]
[1765129320415,0.23135651,90769.0,90766.0,0.02220398]
[1765129321143,0.031696,90777.0,90760.0,0.01101806]
[1765129321144,0.02963509,90828.0,90790.0,0.33401442]
[1765129321343,0.02963509,90828.0,90768.0,0.3864]
[1765129321344,0.23127498,90801.0,90793.0,0.46681406]
[1765129321542,0.01101321,90800.0,90798.0,0.02220398]
[1765129321765,0.01101321,90800.0,90793.0,0.01101406]
[1765129321766,0.01101345,90798.0,90793.0,0.33401406]
[1765129321962,0.01101236,90807.0,90802.0,0.01101297]
[1765129322171,0.0110126,90805.0,90802.0,0.33207297]
[1765129322372,0.02869248,90806.0,90805.0,0.02220398]
[1765129322583,0.02869248,90806.0,90805.0,0.08560398]
[1765129322761,0.02869248,90806.0,90805.0,0.02220398]
[1765129322936,0.02869248,90806.0,90805.0,0.08560398]
[1765129323131,0.02869248,90806.0,90805.0,0.17974398]
[1765129323634,0.00011832,90807.0,90805.0,0.17974398]
[1765129323843,0.00011832,90807.0,90804.0,0.01101273]
[1765129323844,0.00011832,90807.0,90806.0,0.39999374]
[1765129324015,0.01779832,90807.0,90806.0,0.72299374]
[1765129324442,0.01779832,90807.0,90806.0,0.50274398]
[1765129325262,0.01779832,90807.0,90806.0,0.50474398]
[1765129326196,0.01779832,90807.0,90806.0,0.50874398]
[1765129326532,0.23804565,90807.0,90806.0,0.006]
[1765129327047,0.01779832,90807.0,90806.0,0.18574398]
[1765129327226,0.23804565,90807.0,90806.0,0.09160398]
[1765129327427,0.00011832,90807.0,90806.0,0.17974398]
[1765129327631,0.01101357,90797.0,90796.0,0.02220398]
[1765129327881,0.01101357,90797.0,90786.0,0.10515491]
[1765129327882,0.01101406,90793.0,90792.0,0.02220398]
[1765129328018,0.01768,90793.0,90792.0,0.02220398]
[1765129328230,0.01768,90793.0,90792.0,0.50274398]
[1765129328609,0.00011832,90807.0,90804.0,0.01101273]
[1765129328783,0.00011832,90807.0,90806.0,0.40860398]
[1765129328946,0.01779832,90807.0,90806.0,0.50274398]
[1765129329948,0.01101091,90819.0,90806.0,0.50274398]
[1765129329949,0.0039804,90879.0,90828.0,0.11033]
[1765129330157,0.01481343,90908.0,90900.0,0.00099999]
[1765129330308,0.01481343,90908.0,90890.0,0.00099999]
[1765129330309,0.01100158,90896.0,90890.0,0.00099999]
[1765129330524,0.09171,90901.0,90881.0,0.3340034]
[1765129330759,0.00161287,90896.0,90893.0,0.01100194]
[1765129330954,0.00161287,90896.0,90891.0,0.323]
[1765129331434,0.00161287,90896.0,90894.0,0.02220398]
[1765129332106,0.00261287,90896.0,90890.0,0.00099999]
[1765129332315,0.03031,90891.0,90883.0,0.22006315]
[1765129332524,0.03031,90891.0,90862.0,0.09003]
[1765129332525,0.001,90896.0,90890.0,0.00099999]
[1765129332748,0.01768,90895.0,90892.0,0.01100206]
[1765129332948,0.01768,90895.0,90894.0,0.34520398]
[1765129333591,0.01768,90895.0,90894.0,0.41062398]
[1765129333795,0.01768,90895.0,90894.0,0.50065398]
[1765129334428,0.01968,90895.0,90894.0,0.50065398]
[1765129334856,0.01968,90895.0,90894.0,5.50065398]
[1765129335269,0.00039474,90908.0,90894.0,5.50065398]
[1765129335470,0.00039474,90908.0,90907.0,0.67755904]
[1765129335679,0.00039474,90908.0,90907.0,1.03825904]
[1765129335893,0.00039474,90908.0,90907.0,1.59128904]
[1765129336106,0.00039474,90908.0,90907.0,0.87078904]
[1765129336311,0.00039474,90908.0,90907.0,3.32718904]
[1765129336519,0.00039474,90908.0,90907.0,3.29718904]
[1765129336956,0.00039474,90908.0,90907.0,3.73795904]
[1765129337150,0.00039474,90908.0,90907.0,3.74195904]
[1765129337362,0.00039474,90908.0,90907.0,3.70045904]
[1765129338060,0.0002,90910.0,90907.0,3.70045904]
[1765129338061,0.0002,90910.0,90909.0,5.5652042]
[1765129338275,0.00031836,90910.0,90909.0,5.6306242]
[1765129338430,0.01768,90921.0,90920.0,0.56517758]
[1765129338621,0.01768,90921.0,90920.0,3.12269758]
[1765129338825,0.01768,90921.0,90920.0,0.72062758]
[1765129339027,0.01768,90921.0,90920.0,5.42052758]
[1765129339812,0.01268,90921.0,90920.0,5.33049758]
[1765129340014,0.01268,90921.0,90920.0,0.34520398]
[1765129340238,0.01268,90921.0,90920.0,0.35520398]
[1765129341131,0.01268,90921.0,90920.0,0.35720398]
[1765129341341,0.01268,90921.0,90920.0,0.42262398]
[1765129341561,0.00892016,90921.0,90920.0,0.42262398]
[1765129341805,0.00892016,90921.0,90920.0,0.50265398]
[1765129342033,0.00892016,90921.0,90920.0,0.41762398]
[1765129342313,0.00892016,90921.0,90920.0,0.50765398]
[1765129342557,0.00892016,90921.0,90920.0,0.35220398]
[1765129342732,0.00892016,90921.0,90920.0,0.33]
[1765129343089,0.00892016,90921.0,90920.0,0.328]
[1765129343311,0.00892016,90921.0,90920.0,0.323]
[1765129343511,0.00892016,90921.0,90920.0,0.329]
[1765129343828,0.00892016,90921.0,90920.0,0.327]
[1765129344231,0.00892016,90921.0,90920.0,0.329]
[1765129344528,0.00892016,90921.0,90920.0,0.5489736]
[1765129344810,0.00892016,90921.0,90920.0,0.6984236]
[1765129345002,0.00124016,90921.0,90920.0,0.72062758]
[1765129345226,0.00124016,90921.0,90920.0,0.72262758]
[1765129345358,0.00124016,90921.0,90920.0,0.72062758]
[1765129345771,0.00224016,90921.0,90920.0,0.72062758]
[1765129345975,0.00124016,90921.0,90920.0,0.72162758]
[1765129346398,0.00124016,90921.0,90920.0,0.72362758]
[1765129346596,0.00124016,90921.0,90920.0,0.72262758]
[1765129347045,0.00124016,90921.0,90920.0,0.72462758]
[1765129347470,0.00124016,90921.0,90920.0,0.72262758]
[1765129347676,0.00124016,90921.0,90920.0,0.72462758]
[1765129347884,0.00124016,90921.0,90920.0,0.72262758]
[1765129348298,0.00124016,90921.0,90920.0,0.72562758]
[1765129350108,0.00124016,90921.0,90920.0,5.72562758]
[1765129350493,0.00124016,90921.0,90920.0,5.39522758]
[1765129350694,0.00124016,90921.0,90920.0,1.38732758]
[1765129351133,0.00124016,90921.0,90920.0,1.39692758]
[1765129352222,0.00124016,90921.0,90920.0,0.63559758]
[1765129352645,0.00124016,90921.0,90920.0,0.72570758]
[1765129352810,0.00124016,90921.0,90920.0,5.72570758]
[1765129357636,0.00124016,90921.0,90920.0,4.48710758]
[1765129358044,0.00124016,90921.0,90920.0,4.44320758]
[1765129358243,0.00124016,90921.0,90920.0,4.46670758]
[1765129358800,0.00124016,90921.0,90920.0,1.43990758]
[1765129359177,0.00124016,90921.0,90920.0,2.55910758]
[1765129359331,0.00124016,90921.0,90920.0,4.41040758]
[1765129359733,0.00124016,90921.0,90920.0,1.68890758]
[1765129359947,0.00124016,90921.0,90920.0,1.48340758]
[1765129360145,0.00124016,90921.0,90920.0,1.84260758]
[1765129360549,0.00124016,90921.0,90920.0,1.15250758]
[1765129361383,0.00124016,90921.0,90920.0,1.68900758]
[1765129361966,0.00124016,90921.0,90920.0,1.73090852]
[1765129362164,0.00124016,90921.0,90920.0,1.68900758]
[1765129362364,0.00124016,90921.0,90920.0,5.72570758]
[1765129362594,0.00124016,90921.0,90920.0,5.72370758]
[1765129362963,0.00124016,90921.0,90920.0,5.72470758]
[1765129363430,0.04738,90980.0,90947.0,0.01099541]
[1765129363653,0.0003182,90950.0,90949.0,5.65119346]
[1765129363852,0.0003182,90950.0,90949.0,5.67339744]
[1765129364114,0.0003182,90950.0,90949.0,5.5416009]
[1765129364337,0.0003182,90950.0,90949.0,3.3308009]
[1765129364570,0.0003182,90950.0,90949.0,3.8226009]
[1765129365210,0.0003182,90950.0,90949.0,3.74140744]
[1765129365419,0.0003182,90950.0,90949.0,5.77050744]
[1765129365858,0.0003182,90950.0,90949.0,0.0635571]
[1765129366097,0.0003182,90950.0,90949.0,0.0615571]
[1765129366549,0.0003182,90950.0,90949.0,0.02320398]
[1765129366772,0.0003182,90950.0,90949.0,0.08831398]
[1765129367025,0.0003182,90950.0,90949.0,0.41131398]
[1765129367192,0.0003182,90950.0,90949.0,0.50442398]
[1765129367442,0.0003182,90950.0,90949.0,1.32562398]
[1765129367634,0.0003182,90950.0,90949.0,1.32262398]
[1765129367813,0.0003182,90950.0,90949.0,0.50542398]
[1765129367992,0.0003182,90950.0,90949.0,0.50042398]
[1765129368394,0.0003182,90950.0,90949.0,0.50142398]
[1765129368642,0.0179582,90950.0,90949.0,0.52440775]
[1765129368781,0.0179582,90950.0,90949.0,0.43429775]
[1765129369218,0.0179582,90950.0,90949.0,0.41309377]
[1765129369434,0.0179582,90950.0,90949.0,0.49274008]
[1765129369591,0.01881402,90950.0,90949.0,0.49274008]
[1765129372814,0.01881402,90950.0,90949.0,0.43529775]
[1765129373256,0.01881402,90950.0,90949.0,0.04718775]
[1765129375346,0.01881402,90950.0,90949.0,0.11229775]
[1765129375761,0.01881402,90950.0,90949.0,0.04718775]
[1765129376163,0.40003793,90950.0,90949.0,0.02498377]
[1765129376577,0.40003793,90950.0,90949.0,0.002]
[1765129376803,0.40003793,90950.0,90949.0,0.001]
[1765129377224,0.40003793,90950.0,90928.0,0.01099771]
[1765129377225,0.2199228,90941.0,90939.0,0.05094356]
[1765129377364,0.10923,90940.0,90939.0,0.05094356]
[1765129377576,0.21992764,90939.0,90938.0,0.02873958]
[1765129377768,0.21992764,90939.0,90936.0,0.02873958]
[1765129377769,0.23092402,90939.0,90936.0,0.02873958]
[1765129377967,0.21993248,90937.0,90936.0,0.02873958]
[1765129378578,0.28001248,90937.0,90936.0,0.02873958]
[1765129378852,0.21993248,90937.0,90936.0,0.02873958]
[1765129379270,0.01764,90938.0,90937.0,0.02220398]
[1765129379477,0.003,90940.0,90939.0,0.34520398]
[1765129379720,0.02064,90940.0,90939.0,0.40549398]
[1765129379855,0.01764,90940.0,90939.0,0.49560398]
[1765129380081,0.01764,90940.0,90939.0,0.53391974]
[1765129380471,0.01764,90940.0,90939.0,0.49560398]
[1765129380694,0.01764,90940.0,90939.0,0.49660398]
[1765129380891,0.01764,90940.0,90939.0,2.80380398]
[1765129381093,0.01764,90940.0,90939.0,2.82083521]
[1765129381587,0.01764,90940.0,90939.0,5.51363521]
[1765129382641,0.01820077,90940.0,90939.0,0.86723521]
[1765129383243,0.01820077,90940.0,90939.0,0.76593521]
[1765129383442,0.01820077,90940.0,90939.0,0.04123521]
[1765129383629,0.01820077,90940.0,90939.0,0.04432108]
[1765129383829,0.00056077,90940.0,90939.0,0.58510398]
[1765129384028,0.01820077,90940.0,90939.0,3.48270398]
[1765129384308,0.00056077,90940.0,90939.0,3.48570398]
[1765129384509,0.00056077,90940.0,90939.0,2.64530398]
[1765129384643,0.00056077,90940.0,90939.0,0.64140398]
[1765129384848,0.00156077,90940.0,90939.0,0.64040398]
[1765129385046,0.00156077,90940.0,90939.0,1.23890398]
[1765129385276,0.00156077,90940.0,90939.0,0.69997122]
[1765129385473,0.00156077,90940.0,90939.0,0.68527122]
[1765129386109,0.00056077,90940.0,90939.0,0.75957122]
[1765129386538,0.00217364,90940.0,90939.0,0.38446724]
[1765129386692,0.00217364,90940.0,90939.0,0.323]
[1765129386878,0.00217364,90940.0,90939.0,0.34620398]
[1765129387213,0.16188364,90940.0,90939.0,0.002]
[1765129387361,0.16188364,90940.0,90939.0,0.001]
[1765129387567,0.23092402,90939.0,90936.0,0.02220398]
[1765129387766,0.00599,90937.0,90936.0,0.02220398]
[1765129387969,0.23093925,90933.0,90930.0,0.02974383]
[1765129388189,0.23093925,90933.0,90923.0,0.02220398]
[1765129388190,0.21996392,90924.0,90923.0,0.02220398]
[1765129388519,0.2199736,90920.0,90919.0,0.02874384]
[1765129388663,0.21998086,90917.0,90916.0,0.02874384]
[1765129388878,0.21998086,90917.0,90915.0,0.02874384]
[1765129389092,0.2309799,90917.0,90914.0,0.05094782]
[1765129389294,0.2309799,90917.0,90914.0,0.02220398]
[1765129389960,0.21998812,90914.0,90912.0,0.02874384]
[1765129390215,0.2199978,90910.0,90909.0,0.02220398]
[1765129390428,0.2376378,90910.0,90909.0,0.02259872]
[1765129390986,0.3973478,90910.0,90909.0,0.00039474]
[1765129391595,0.3993478,90910.0,90909.0,0.00039474]
[1765129391897,0.3973478,90910.0,90909.0,0.00039474]
[1765129392498,0.45987079,90910.0,90909.0,0.00039474]
[1765129392928,0.2199978,90910.0,90909.0,0.00039474]
[1765129393100,0.2406378,90910.0,90909.0,0.02259872]
[1765129393484,0.2376378,90910.0,90909.0,0.02259872]
[1765129393845,0.2376378,90910.0,90909.0,0.00039474]
[1765129393846,0.2466378,90910.0,90909.0,0.00039474]
[1765129393986,0.4080978,90910.0,90909.0,0.00039474]
[1765129394191,0.4130978,90910.0,90909.0,0.00039474]
[1765129394594,0.3990978,90910.0,90909.0,0.00039474]
[1765129394789,0.4050978,90910.0,90909.0,0.00039474]
[1765129395242,0.3970978,90910.0,90909.0,0.00039474]
[1765129395458,0.4050978,90910.0,90909.0,0.00039474]
[1765129395768,0.3108578,90910.0,90909.0,0.00039474]
[1765129395972,0.2446378,90910.0,90909.0,0.00039474]
[1765129396173,0.02464,90910.0,90909.0,0.00039474]
[1765129396408,0.009,90910.0,90909.0,0.47874474]
[1765129396606,0.02664,90910.0,90909.0,0.50094872]
[1765129396766,0.23095418,90928.0,90923.0,0.01099831]
[1765129396965,0.01764,90927.0,90925.0,0.02220398]
[1765129397162,0.01764,90927.0,90926.0,0.02220398]
[1765129397346,0.23095269,90928.0,90926.0,0.02220398]
[1765129397546,0.01764,90927.0,90926.0,0.03320193]
[1765129398152,0.02264,90927.0,90926.0,0.42144193]
[1765129398559,0.02264,90927.0,90926.0,0.41044398]
[1765129398762,0.02264,90927.0,90926.0,0.34520398]
[1765129399045,0.02264,90927.0,90926.0,0.87361307]
[1765129400011,0.02364,90927.0,90926.0,0.87361307]
[1765129400854,0.02364,90927.0,90926.0,0.93885307]
[1765129401060,0.01864,90927.0,90926.0,0.93885307]
[1765129401230,0.01964,90927.0,90926.0,0.93885307]
[1765129401469,0.01864,90927.0,90926.0,1.02896307]
[1765129401799,0.01864,90927.0,90926.0,3.88102215]
[1765129401965,0.01864,90927.0,90926.0,3.24672215]
[1765129402543,0.01864,90927.0,90926.0,2.53162215]
[1765129402751,0.01864,90927.0,90926.0,2.50332215]
[1765129403154,0.01864,90927.0,90926.0,2.47332215]
[1765129403412,0.01864,90927.0,90926.0,1.09357215]
[1765129403559,0.01764,90927.0,90926.0,1.09357215]
[1765129403902,0.01764,90927.0,90926.0,1.09457215]
[1765129404314,0.01764,90927.0,90926.0,1.09357215]
[1765129405300,0.01764,90927.0,90926.0,1.09457215]
[1765129405810,0.01764,90927.0,90926.0,1.09357215]
[1765129405987,0.01764,90927.0,90926.0,1.15981215]
[1765129406636,0.01764,90927.0,90926.0,0.93985307]
[1765129407045,0.01764,90927.0,90926.0,1.15981215]
[1765129408027,0.01864,90927.0,90926.0,1.15981215]
[1765129408228,0.01864,90927.0,90926.0,1.15881215]
[1765129408810,0.01864,90927.0,90926.0,1.24892215]
[1765129409029,0.01864,90927.0,90926.0,1.15881215]
[1765129409694,0.01864,90927.0,90926.0,0.85140909]
[1765129409826,0.01764,90927.0,90926.0,0.87361307]
[1765129410033,0.01764,90927.0,90926.0,0.85240909]
[1765129410260,0.01764,90927.0,90926.0,0.85340909]
[1765129410442,0.01764,90927.0,90926.0,0.85240909]
[1765129410862,0.01764,90927.0,90926.0,0.85340909]
[1765129411065,0.01764,90927.0,90926.0,0.93985307]
[1765129411724,0.35799953,90927.0,90926.0,0.85140909]
[1765129411930,0.35799953,90927.0,90926.0,0.52840909]
[1765129412368,0.22156953,90927.0,90926.0,0.52840909]
[1765129412582,0.24120953,90927.0,90926.0,0.52840909]
[1765129412826,0.02125287,90927.0,90926.0,0.55061307]
[1765129413028,0.02025287,90927.0,90926.0,0.55061307]
[1765129413233,0.02764,90927.0,90926.0,0.77057215]
[1765129413436,0.02764,90927.0,90926.0,0.83581215]
[1765129413437,0.0176,90927.0,90926.0,0.83581215]
[1765129413638,0.0196,90927.0,90926.0,1.15881215]
[1765129413830,0.0246,90927.0,90926.0,1.09357215]
[1765129413988,0.0246,90927.0,90926.0,0.87361307]
[1765129414410,0.08982,90927.0,90926.0,0.87361307]
[1765129414778,0.18367287,90927.0,90926.0,0.52840909]
[1765129415185,0.18467287,90927.0,90926.0,0.52840909]
[1765129415943,0.18367287,90927.0,90926.0,0.52840909]
[1765129416144,0.17867287,90927.0,90926.0,0.52840909]
[1765129416310,0.18967287,90927.0,90926.0,0.52840909]
[1765129416964,0.21187685,90927.0,90926.0,0.52840909]
[1765129417183,0.18967287,90927.0,90926.0,0.52840909]
[1765129417832,0.18767287,90927.0,90926.0,0.52840909]
[1765129418169,0.18967287,90927.0,90926.0,0.52840909]
[1765129418572,0.18067287,90927.0,90926.0,0.52840909]
[1765129419106,0.18367287,90927.0,90926.0,0.52840909]
[1765129419494,0.16607287,90927.0,90926.0,0.55061307]
[1765129419700,0.16607287,90927.0,90926.0,0.52840909]
[1765129419899,0.18367287,90927.0,90926.0,0.52840909]
[1765129420256,0.18067287,90927.0,90926.0,0.52840909]
[1765129420526,0.18267287,90927.0,90926.0,0.52840909]
[1765129420720,0.18067287,90927.0,90926.0,0.52840909]
[1765129421124,0.18267287,90927.0,90926.0,0.52840909]
[1765129421549,0.18067287,90927.0,90926.0,0.52840909]
[1765129421949,0.18267287,90927.0,90926.0,0.52840909]
[1765129423346,0.18067287,90927.0,90926.0,0.52840909]
[1765129423758,0.08443287,90927.0,90926.0,0.52940909]
[1765129423942,0.06683287,90927.0,90926.0,0.52940909]
[1765129424327,0.1002463,90927.0,90926.0,0.55161307]
[1765129424526,0.1994963,90927.0,90926.0,0.55161307]
[1765129425721,0.1002463,90927.0,90926.0,0.55161307]
[1765129426071,0.0826463,90927.0,90926.0,0.52940909]
[1765129426205,0.1994963,90927.0,90926.0,0.55161307]
[1765129426672,0.18468287,90927.0,90926.0,0.55161307]
[1765129426860,0.18468287,90927.0,90926.0,0.52940909]
[1765129427063,0.08543287,90927.0,90926.0,0.55161307]
[1765129427449,0.18468287,90927.0,90926.0,0.55161307]
[1765129428082,0.08543287,90927.0,90926.0,0.55161307]
[1765129428394,0.02021287,90927.0,90926.0,0.55161307]
[1765129429600,0.08209287,90927.0,90926.0,0.55161307]
[1765129430716,0.08209287,90927.0,90926.0,0.52940909]
[1765129430920,0.1961563,90927.0,90926.0,0.55161307]
[1765129431299,0.18134287,90927.0,90926.0,0.55161307]
[1765129431838,0.1961563,90927.0,90926.0,0.55161307]
[1765129434106,0.1961563,90927.0,90926.0,0.52940909]
[1765129437888,0.1951563,90927.0,90926.0,0.52940909]
[1765129438088,0.1951563,90927.0,90926.0,0.52840909]
[1765129438303,0.18034287,90927.0,90926.0,0.53040909]
[1765129439545,0.18234287,90927.0,90926.0,0.53040909]